Workbook

Sheet для проекта
D6: Увеличение расходов (санкционированная кредиторская задолженность по коммунальным услугам за 2025 год) | I6: Уменьшение ТЭР (по Постановлению Правительства №419 от 29.12.2025 год) | N6: Отклонение по коммунальным услугам
A7: раздел, подраздел | B7: орг код | C7: Наименование | D7: Всего | E7: Оплата тепловой энергии | F7: Оплата освещения помещений | G7: Оплата водоснабжения помещений | H7: Оплата газа | I7: Всего | J7: Оплата тепловой энергии | K7: Оплата освещения помещений | L7: Оплата водоснабжения помещений | M7: Оплата газа | N7: Всего | O7: Оплата тепловой энергии | P7: Оплата освещения помещений | Q7: Оплата водоснабжения помещений | R7: Оплата газа
E8: [110720] | F8: [110730] | G8: [110740] | H8: [110780] | J8: [110720] | K8: [110730] | L8: [110740] | M8: [110780] | O8: [110720] | P8: [110730] | Q8: [110740] | R8: [110780]
A9: 0100 | C9: ГОСУДАРСТВЕННОЕ УПРАВЛЕНИЕ И МЕСТНОЕ САМОУПРАВЛЕНИЕ | D9: =E9+F9+G9+H9 -> 2411683 | E9: =E10+E12+E16+E29+E31+E35+E37 -> 681110 | F9: 1445403 | G9: 119598 | H9: 165572 | I9: =J9+K9+L9+M9 -> -308300 | J9: -115420 | K9: -155677 | L9: -22133 | M9: -15070 | N9: =O9+P9+Q9+R9 -> 2103383 | O9: =E9+J9 -> 565690 | P9: =F9+K9 -> 1289726 | Q9: 97465 | R9: 150502
A10: 0101 | C10: Функционирование главы государства - Президента ПМР | D10: 375703 | E10: =E11 -> 57010 | F10: 242743 | G10: 23165 | H10: 52785 | I10: -48501 | J10: -9949 | K10: -30156 | L10: -3594 | M10: -4802 | N10: =O10+P10+Q10+R10 -> 327202 | O10: 47061 | P10: 212587 | Q10: 19571 | R10: 47983
B11: 102 | C11: Администрация Президента ПМР | D11: 375703 | E11: 57010 | F11: 242743 | G11: 23165 | H11: 52785 | I11: -48501 | J11: -9949 | K11: -30156 | L11: -3594 | M11: -4802 | N11: 327202 | O11: 47061 | P11: 212587 | Q11: 19571 | R11: 47983
A12: 0102 | C12: Функционирование органов законодательной гос-ной власти | D12: 95940 | E12: =E13+E14+E15 -> 10769 | F12: 62787 | G12: 7254 | H12: 15130 | I12: -12309 | J12: -1844 | K12: -8021 | L12: -1009 | M12: -1435 | N12: 83631 | O12: 8925 | P12: 54766 | Q12: 6245 | R12: 13695
B13: 101 | C13: Верховный Совет ПМР | D13: 18036 | F13: 17818 | G13: 218 | I13: -3548 | J13: -179 | K13: -3282 | L13: -73 | M13: -14 | N13: 14488 | O13: -179 | P13: 14536 | Q13: 145 | R13: -14
B14: 103 | C14: Счётная палата ПМР | D14: 64466 | E14: 7768 | F14: 35690 | G14: 5878 | H14: 15130 | I14: -7238 | J14: -1176 | K14: -3852 | L14: -789 | M14: -1421 | N14: 57228 | O14: 6592 | P14: 31838 | Q14: 5089 | R14: 13709
B15: 148 | C15: Аппарат Уполномоченного по правам человека в ПМР | D15: 13438 | E15: 3001 | F15: 9279 | G15: 1158 | I15: -1523 | J15: -489 | K15: -887 | L15: -147 | N15: 11915 | O15: 2512 | P15: 8392 | Q15: 1011 | R15: 0
A16: 0103 | C16: Функционирование исполнительных органов гос-ной власти | D16: 1006408 | E16: =SUM(E17:E28) -> 398574 | F16: 524425 | G16: 42937 | H16: 40472 | I16: -126017 | J16: -61869 | K16: -52846 | L16: -7585 | M16: -3717 | N16: 880391 | O16: 336705 | P16: 471579 | Q16: 35352 | R16: 36755
B17: 109 | C17: Министерство экономического развития ПМР (аппарат) | D17: 238882 | E17: 50716 | F17: 165334 | G17: 12110 | H17: 10722 | I17: -27338 | J17: -7930 | K17: -16230 | L17: -2348 | M17: -830 | N17: 211544 | O17: 42786 | P17: 149104 | Q17: 9762 | R17: 9892
B18: 110 | C18: Министерство по социальной защите и труду ПМР (аппарат) | D18: 104951 | E18: 29806 | F18: 63332 | G18: 3125 | H18: 8688 | I18: -7971 | J18: -2602 | K18: -3665 | L18: -468 | M18: -1236 | N18: 96980 | O18: 27204 | P18: 59667 | Q18: 2657 | R18: 7452
B19: 114 | C19: Министерство просвещения ПМР (аппарат) | D19: 118590 | E19: 57614 | F19: 58768 | G19: 2208 | I19: -15020 | J19: -9923 | K19: -4466 | L19: -631 | N19: 103570 | O19: 47691 | P19: 54302 | Q19: 1577 | R19: 0
B20: 115 | C20: Министерство юстиции ПМР (аппарат) | D20: 75141 | E20: 14258 | F20: 51250 | G20: 3618 | H20: 6015 | I20: -10351 | J20: -2957 | K20: -5751 | L20: -979 | M20: -664 | N20: 64790 | O20: 11301 | P20: 45499 | Q20: 2639 | R20: 5351
B21: 119 | C21: Министерство иностранных дел ПМР (аппарат) | D21: 53516 | F21: 31752 | G21: 6717 | H21: 15047 | I21: -5616 | K21: -4200 | L21: -429 | M21: -987 | N21: 47900 | O21: 0 | P21: 27552 | Q21: 6288 | R21: 14060
B22: 120 | C22: Министерство с/х и природных ресурсов ПМР (аппарат) | D22: 162050 | E22: 89873 | F22: 62958 | G22: 9219 | I22: -22654 | J22: -15299 | K22: -5816 | L22: -1539 | N22: 139396 | O22: 74574 | P22: 57142 | Q22: 7680 | R22: 0
B23: 140 | C23: ГС по спорту ПМР (аппарат) | D23: 16934 | E23: 4189 | F23: 12245 | G23: 500 | I23: -1375 | J23: -549 | K23: -720 | L23: -106 | N23: 15559 | O23: 3640 | P23: 11525 | Q23: 394 | R23: 0
B24: 142 | C24: ГС по культуре и историческому наследию ПМР (аппарат) | D24: 51855 | E24: 50499 | F24: 1220 | G24: 136 | I24: -2293 | J24: -2218 | K24: -71 | L24: -4 | N24: 49562 | O24: 48281 | P24: 1149 | Q24: 132 | R24: 0
B25: 145 | C25: ГС управления документацией и архивами ПМР (аппарат) | D25: 48682 | E25: 32940 | F25: 13797 | G25: 1945 | I25: -8383 | J25: -6966 | K25: -1171 | L25: -246 | N25: 40299 | O25: 25974 | P25: 12626 | Q25: 1699 | R25: 0
B26: 146 | C26: ГС экологического контроля и охраны ок. среды ПМР | D26: 29960 | E26: 8416 | F26: 20951 | G26: 593 | I26: -5178 | J26: -2750 | K26: -2333 | L26: -95 | N26: 24782 | O26: 5666 | P26: 18618 | Q26: 498 | R26: 0
B27: 149 | C27: Фонд государственного резерва ПМР (аппарат) | D27: 6621 | E27: 2831 | F27: 3516 | G27: 274 | I27: -944 | J27: -519 | K27: -375 | L27: -50 | N27: 5677 | O27: 2312 | P27: 3141 | Q27: 224 | R27: 0
B28: 157 | C28: Министерство цифрового развития, связи и массовых коммуникаций ПМР | D28: 99226 | E28: 57432 | F28: 39302 | G28: 2492 | I28: -18894 | J28: -10156 | K28: -8048 | L28: -690 | N28: 80332 | O28: 47276 | P28: 31254 | Q28: 1802 | R28: 0
A29: 0104 | C29: Деятельность финансовых и налоговых органов | D29: 433912 | E29: =E30 -> 34594 | F29: 339194 | G29: 21312 | H29: 38812 | I29: -50993 | J29: -8327 | K29: -35186 | L29: -3860 | M29: -3620 | N29: 382919 | O29: 26267 | P29: 304008 | Q29: 17452 | R29: 35192
B30: 150 | C30: Министерство финансов ПМР | D30: 433912 | E30: 34594 | F30: 339194 | G30: 21312 | H30: 38812 | I30: -50993 | J30: -8327 | K30: -35186 | L30: -3860 | M30: -3620 | N30: 382919 | O30: 26267 | P30: 304008 | Q30: 17452 | R30: 35192
A31: 0105 | C31: Прочие расходы на общегосударственное управление | D31: 179457 | E31: =SUM(E32:E34) -> 43975 | F31: 108001 | G31: 9108 | H31: 18373 | I31: -19800 | J31: -7708 | K31: -9075 | L31: -1521 | M31: -1496 | N31: 159657 | O31: 36267 | P31: 98926 | Q31: 7587 | R31: 16877
B32: 109 | C32: ГУ Единый аукционный центр | D32: 4496 | E32: 1233 | F32: 3263 | I32: -488 | J32: -228 | K32: -260 | N32: 4008 | O32: 1005 | P32: 3003 | Q32: 0 | R32: 0
B33: 115 | C33: Министерство юстиции (ГС РиН, УСЭ) | D33: 132607 | E33: 23488 | F33: 84685 | G33: 7396 | H33: 17038 | I33: -15670 | J33: -4979 | K33: -8006 | L33: -1302 | M33: -1383 | N33: 116937 | O33: 18509 | P33: 76679 | Q33: 6094 | R33: 15655
B34: 120 | C34: Мин-во с/х и природных ресурсов (террит. управления) | D34: 42354 | E34: 19254 | F34: 20053 | G34: 1712 | H34: 1335 | I34: -3642 | J34: -2501 | K34: -809 | L34: -219 | M34: -113 | N34: 38712 | O34: 16753 | P34: 19244 | Q34: 1493 | R34: 1222
A35: 0108 | C35: Функционирование органов статистики | D35: 11860 | E35: =E36 -> 9682 | F35: 526 | G35: 1652 | H35: 0 | I35: -3325 | J35: -1585 | K35: -1396 | L35: -344 | M35: 0 | N35: 8535 | O35: 8097 | P35: -870 | Q35: 1308 | R35: 0
B36: 109 | C36: Министерство экономического развития ПМР (территор.упр-я статистики) | D36: 11860 | E36: 9682 | F36: 526 | G36: 1652 | I36: -3325 | J36: -1585 | K36: -1396 | L36: -344 | N36: 8535 | O36: 8097 | P36: -870 | Q36: 1308 | R36: 0
A37: 0110 | C37: Функционирование Правительства ПМР | D37: 308403 | E37: =E38 -> 126506 | F37: 167727 | G37: 14170 | H37: 0 | I37: -47355 | J37: -24138 | K37: -18997 | L37: -4220 | M37: 0 | N37: 261048 | O37: 102368 | P37: 148730 | Q37: 9950 | R37: 0
B38: 100 | C38: Правительство ПМР | D38: 308403 | E38: 126506 | F38: 167727 | G38: 14170 | I38: -47355 | J38: -24138 | K38: -18997 | L38: -4220 | N38: 261048 | O38: 102368 | P38: 148730 | Q38: 9950 | R38: 0
A39: 0200 | C39: ОРГАНЫ СУДЕБНОЙ ВЛАСТИ | D39: 484175 | E39: =E40+E42+E44+E46 -> 102360 | F39: 287557 | G39: 27565 | H39: 66693 | I39: -52447 | J39: -13965 | K39: -28677 | L39: -4295 | M39: -5510 | N39: 431728 | O39: 88395 | P39: 258880 | Q39: 23270 | R39: 61183
A40: 0201 | C40: Конституционный суд | D40: 104532 | E40: =E41 -> 0 | F40: 79621 | G40: 5548 | H40: 19363 | I40: -9417 | J40: 0 | K40: -7251 | L40: -763 | M40: -1403 | N40: 95115 | O40: 0 | P40: 72370 | Q40: 4785 | R40: 17960
B41: 125 | C41: Конституционный суд ПМР | D41: 104532 | F41: 79621 | G41: 5548 | H41: 19363 | I41: -9417 | K41: -7251 | L41: -763 | M41: -1403 | N41: 95115 | O41: 0 | P41: 72370 | Q41: 4785 | R41: 17960
A42: 0202 | C42: Верховный суд | D42: 104694 | E42: =E43 -> 53846 | F42: 47171 | G42: 3677 | H42: 0 | I42: -10745 | J42: -5526 | K42: -4637 | L42: -582 | M42: 0 | N42: 93949 | O42: 48320 | P42: 42534 | Q42: 3095 | R42: 0
B43: 106 | C43: Верховный суд ПМР | D43: 104694 | E43: 53846 | F43: 47171 | G43: 3677 | I43: -10745 | J43: -5526 | K43: -4637 | L43: -582 | N43: 93949 | O43: 48320 | P43: 42534 | Q43: 3095 | R43: 0
A44: 0203 | C44: Судебные органы | D44: 238898 | E44: =E45 -> 48514 | F44: 137163 | G44: 16369 | H44: 36852 | I44: -27579 | J44: -8439 | K44: -13400 | L44: -2619 | M44: -3121 | N44: 211319 | O44: 40075 | P44: 123763 | Q44: 13750 | R44: 33731
B45: 139 | C45: Судебный департамент при Верховном суде ПМР | D45: 238898 | E45: 48514 | F45: 137163 | G45: 16369 | H45: 36852 | I45: -27579 | J45: -8439 | K45: -13400 | L45: -2619 | M45: -3121 | N45: 211319 | O45: 40075 | P45: 123763 | Q45: 13750 | R45: 33731
A46: 0204 | C46: Арбитражный суд | D46: 36051 | E46: =E47 -> 0 | F46: 23602 | G46: 1971 | H46: 10478 | I46: -4706 | J46: 0 | K46: -3389 | L46: -331 | M46: -986 | N46: 31345 | O46: 0 | P46: 20213 | Q46: 1640 | R46: 9492
B47: 107 | C47: Арбитражный суд ПМР | D47: 36051 | F47: 23602 | G47: 1971 | H47: 10478 | I47: -4706 | K47: -3389 | L47: -331 | M47: -986 | N47: 31345 | O47: 0 | P47: 20213 | Q47: 1640 | R47: 9492
A48: 0400 | C48: ГОСУДАРСТВЕННАЯ ОБОРОНА | D48: 6018328 | E48: =E49 -> 1114185 | F48: 3797814 | G48: 749079 | H48: 357250 | I48: -723495 | J48: -202699 | K48: -399916 | L48: -94438 | M48: -26442 | N48: 5294833 | O48: 911486 | P48: 3397898 | Q48: 654641 | R48: 330808
A49: 0401 | C49: Государственная армия | D49: 6018328 | E49: 1114185 | F49: 3797814 | G49: 749079 | H49: 357250 | I49: -723495 | J49: -202699 | K49: -399916 | L49: -94438 | M49: -26442 | N49: 5294833 | O49: 911486 | P49: 3397898 | Q49: 654641 | R49: 330808
B50: 116 | C50: Министерство обороны ПМР | D50: 6018328 | E50: 1114185 | F50: 3797814 | G50: 749079 | H50: 357250 | I50: -723495 | J50: -202699 | K50: -399916 | L50: -94438 | M50: -26442 | N50: 5294833 | O50: 911486 | P50: 3397898 | Q50: 654641 | R50: 330808
A51: 0500 | C51: ПРАВООХРАНИТЕЛЬНАЯ ДЕЯТЕЛЬНОСТЬ И ОБЕСПЕЧ. БЕЗОПАСНОСТИ ГОС-ВА | D51: 13301224 | E51: =E52+E54+E57+E59+E61+E63+E65+E67 -> 2033557 | F51: 9232712 | G51: 1493911 | H51: 541044 | I51: -1815072 | J51: -327125 | K51: -1029315 | L51: -378710 | M51: -79922 | N51: 11486152 | O51: 1706432 | P51: 8203397 | Q51: 1115201 | R51: 461122
A52: 0501 | C52: Органы внутренних дел | D52: 4349339 | E52: =E53 -> 1323679 | F52: 2698828 | G52: 145115 | H52: 181717 | I52: -617763 | J52: -232623 | K52: -294690 | L52: -75859 | M52: -14591 | N52: 3731576 | O52: 1091056 | P52: 2404138 | Q52: 69256 | R52: 167126
B53: 117 | C53: Министерство внутренних дел ПМР | D53: 4349339 | E53: 1323679 | F53: 2698828 | G53: 145115 | H53: 181717 | I53: -617763 | J53: -232623 | K53: -294690 | L53: -75859 | M53: -14591 | N53: 3731576 | O53: 1091056 | P53: 2404138 | Q53: 69256 | R53: 167126
A54: 0503 | C54: Органы, исполняющие наказание и судебные решения | D54: 5271151 | E54: =E55+E56 -> 63932 | F54: 3819609 | G54: 1193900 | H54: 193710 | I54: -816570 | J54: -6569 | K54: -480075 | L54: -277877 | M54: -52049 | N54: 4454581 | O54: 57363 | P54: 3339534 | Q54: 916023 | R54: 141661
B55: 137 | C55: ГС судебных исполнителей МЮ ПМР | D55: 145411 | E55: 60962 | F55: 73126 | G55: 9556 | H55: 1767 | I55: -12481 | J55: -6045 | K55: -5406 | L55: -888 | M55: -142 | N55: 132930 | O55: 54917 | P55: 67720 | Q55: 8668 | R55: 1625
B56: 138 | C56: ГС исполнения наказаний МЮ ПМР | D56: 5125740 | E56: 2970 | F56: 3746483 | G56: 1184344 | H56: 191943 | I56: -804089 | J56: -524 | K56: -474669 | L56: -276989 | M56: -51907 | N56: 4321651 | O56: 2446 | P56: 3271814 | Q56: 907355 | R56: 140036
A57: 0505 | C57: Органы государственной безопасности | D57: 1848402 | E57: =E58 -> 398400 | F57: 1334489 | G57: 71996 | H57: 43517 | I57: -193622 | J57: -49787 | K57: -127965 | L57: -12711 | M57: -3159 | N57: 1654780 | O57: 348613 | P57: 1206524 | Q57: 59285 | R57: 40358
B58: 118 | C58: Министерство государственной безопасности ПМР | D58: 1848402 | E58: 398400 | F58: 1334489 | G58: 71996 | H58: 43517 | I58: -193622 | J58: -49787 | K58: -127965 | L58: -12711 | M58: -3159 | N58: 1654780 | O58: 348613 | P58: 1206524 | Q58: 59285 | R58: 40358
A59: 0507 | C59: Следственные органы | D59: 338893 | E59: =E60 -> 149958 | F59: 173570 | G59: 15365 | H59: 0 | I59: -42362 | J59: -24411 | K59: -15593 | L59: -2358 | M59: 0 | N59: 296531 | O59: 125547 | P59: 157977 | Q59: 13007 | R59: 0
B60: 135 | C60: Следственный комитет Приднестровской Молдавской Республики | D60: 338893 | E60: 149958 | F60: 173570 | G60: 15365 | I60: -42362 | J60: -24411 | K60: -15593 | L60: -2358 | N60: 296531 | O60: 125547 | P60: 157977 | Q60: 13007 | R60: 0
A61: 0508 | C61: Прокуратура ПМР и ее территориальные органы | D61: 254969 | E61: =E62 -> 40421 | F61: 174913 | G61: 13969 | H61: 25666 | I61: -19963 | J61: -3666 | K61: -11548 | L61: -2251 | M61: -2498 | N61: 235006 | O61: 36755 | P61: 163365 | Q61: 11718 | R61: 23168
B62: 108 | C62: Прокуратура ПМР | D62: 254969 | E62: 40421 | F62: 174913 | G62: 13969 | H62: 25666 | I62: -19963 | J62: -3666 | K62: -11548 | L62: -2251 | M62: -2498 | N62: 235006 | O62: 36755 | P62: 163365 | Q62: 11718 | R62: 23168
A63: 0509 | C63: Надзорные органы | D63: 104652 | E63: =E64 -> 55051 | F63: 45475 | G63: 4126 | H63: 0 | I63: -15327 | J63: -9801 | K63: -4798 | L63: -728 | M63: 0 | N63: 89325 | O63: 45250 | P63: 40677 | Q63: 3398 | R63: 0
B64: 151 | C64: Служба государственного надзора МЮ ПМР | D64: 104652 | E64: 55051 | F64: 45475 | G64: 4126 | I64: -15327 | J64: -9801 | K64: -4798 | L64: -728 | N64: 89325 | O64: 45250 | P64: 40677 | Q64: 3398 | R64: 0
A65: 0511 | C65: Таможенные органы Приднестровской Молдавской Республики | D65: 948117 | E65: =E66 -> 2116 | F65: 844514 | G65: 27205 | H65: 74282 | I65: -90417 | J65: -268 | K65: -79846 | L65: -4785 | M65: -5518 | N65: 857700 | O65: 1848 | P65: 764668 | Q65: 22420 | R65: 68764
B66: 134 | C66: Государственный таможенный комитет ПМР | D66: 948117 | E66: 2116 | F66: 844514 | G66: 27205 | H66: 74282 | I66: -90417 | J66: -268 | K66: -79846 | L66: -4785 | M66: -5518 | N66: 857700 | O66: 1848 | P66: 764668 | Q66: 22420 | R66: 68764
A67: 0513 | C67: Органы и учреждения, не отн. к др.гр. | D67: 185701 | E67: =E68 -> 0 | F67: 141314 | G67: 22235 | H67: 22152 | I67: -19048 | J67: 0 | K67: -14800 | L67: -2141 | M67: -2107 | N67: 166653 | O67: 0 | P67: 126514 | Q67: 20094 | R67: 20045
B68: 141 | C68: Государственная служба охраны ПМР | D68: 185701 | F68: 141314 | G68: 22235 | H68: 22152 | I68: -19048 | K68: -14800 | L68: -2141 | M68: -2107 | N68: 166653 | O68: 0 | P68: 126514 | Q68: 20094 | R68: 20045
A69: 0600 | C69: ФУНДАМЕНТАЛЬНЫЕ ИССЛЕДОВАНИЯ И СОДЕЙСТВИЕ НТП | D69: 37579 | E69: =E70 -> 17104 | F69: 5040 | G69: 15435 | H69: 0 | I69: -5553 | J69: -2111 | K69: -480 | L69: -2962 | M69: 0 | N69: 32026 | O69: 14993 | P69: 4560 | Q69: 12473 | R69: 0
A70: 0602 | C70: Прикладные научные исследования | D70: 37579 | E70: =E71+E72 -> 17104 | F70: 5040 | G70: 15435 | H70: 0 | I70: -5553 | J70: -2111 | K70: -480 | L70: -2962 | M70: 0 | N70: 32026 | O70: 14993 | P70: 4560 | Q70: 12473 | R70: 0
B71: 120 | C71: Министерство с/х и природных ресурсов (НИУ) | D71: 35887 | E71: 17104 | F71: 3348 | G71: 15435 | I71: -5418 | J71: -2111 | K71: -345 | L71: -2962 | N71: 30469 | O71: 14993 | P71: 3003 | Q71: 12473 | R71: 0
B72: 146 | C72: ГС экологического контроля и охраны ок. среды ПМР (наука) | D72: 1692 | F72: 1692 | I72: -135 | K72: -135 | N72: 1557 | O72: 0 | P72: 1557 | Q72: 0 | R72: =H72+M72 -> 0
A73: 0900 | C73: ОХРАНА ОКРУЖ. СРЕДЫ, ГИДРОМЕТЕОРОЛОГИЯ, ЛЕСНОЕ, РЫБНОЕ И ВОДНОЕ ХОЗ-ВО | D73: =E73+F73+G73+H73 -> 35016 | E73: =E74 -> 5023 | F73: 29993 | G73: 0 | H73: 0 | I73: =J73+K73+L73+M73 -> -3768 | J73: -709 | K73: -3059 | L73: 0 | M73: 0 | N73: =O73+P73+Q73+R73 -> 31248 | O73: =E73+J73 -> 4314 | P73: 26934 | Q73: 0 | R73: 0
A74: 0905 | C74: Гидрометеорология | D74: 35016 | E74: 5023 | F74: 29993 | G74: 0 | H74: 0 | I74: -3768 | J74: -709 | K74: -3059 | L74: 0 | M74: 0 | N74: 31248 | O74: 4314 | P74: 26934 | Q74: 0 | R74: 0
B75: 120 | C75: Мин-во с/х и прир.рес. (Республиканский ГМЦ) | D75: 35016 | E75: 5023 | F75: 29993 | I75: -3768 | J75: -709 | K75: -3059 | N75: 31248 | O75: 4314 | P75: 26934 | Q75: 0 | R75: 0
A76: 1300 | C76: ОБРАЗОВАНИЕ | D76: 6676546 | E76: =E77+E81+E84+E88+E90 -> 4028207 | F76: 2087455 | G76: 439601 | H76: 121283 | I76: -932461 | J76: -611411 | K76: -204525 | L76: -104927 | M76: -11598 | N76: 5744085 | O76: 3416796 | P76: 1882930 | Q76: 334674 | R76: 109685
A77: 1303 | C77: Среднее образование | D77: 1591688 | E77: =E78+E79+E80 -> 807534 | F77: 573874 | G77: 89391 | H77: 120889 | I77: -241663 | J77: -125017 | K77: -64581 | L77: -40498 | M77: -11567 | N77: 1350025 | O77: 682517 | P77: 509293 | Q77: 48893 | R77: 109322
B78: 110 | C78: Общеобразовательные школы-интернаты | D78: 477908 | E78: 240000 | F78: 158114 | G78: 26296 | H78: 53498 | I78: -88889 | J78: -42852 | K78: -24120 | L78: -16784 | M78: -5133 | N78: 389019 | O78: 197148 | P78: 133994 | Q78: 9512 | R78: 48365
B79: 110 | C79: Спецшколы-интернаты | D79: 685355 | E79: 303840 | F79: 278961 | G79: 35163 | H79: 67391 | I79: -96287 | J79: -42876 | K79: -28194 | L79: -18783 | M79: -6434 | N79: 589068 | O79: 260964 | P79: 250767 | Q79: 16380 | R79: 60957
B80: 114 | C80: Общеобразовательные школы | D80: 428425 | E80: 263694 | F80: 136799 | G80: 27932 | I80: -56487 | J80: -39289 | K80: -12267 | L80: -4931 | N80: 371938 | O80: 224405 | P80: 124532 | Q80: 23001 | R80: 0
A81: 1304 | C81: Специальное образование | D81: 3022781 | E81: =E82+E83 -> 2119571 | F81: 754444 | G81: 148515 | H81: 251 | I81: -412640 | J81: -302313 | K81: -80474 | L81: -29833 | M81: -20 | N81: 2610141 | O81: 1817258 | P81: 673970 | Q81: 118682 | R81: 231
B82: 114 | C82: Техникумы и колледжи системы просвещения | D82: 2680242 | E82: 1977315 | F82: 587171 | G82: 115505 | H82: 251 | I82: -376908 | J82: -283004 | K82: -68652 | L82: -25232 | M82: -20 | N82: 2303334 | O82: 1694311 | P82: 518519 | Q82: 90273 | R82: 231
B83: 140 | C83: ГОУ СПО Училище олимпийского резерва | D83: 342539 | E83: 142256 | F83: 167273 | G83: 33010 | I83: -35732 | J83: -19309 | K83: -11822 | L83: -4601 | N83: 306807 | O83: 122947 | P83: 155451 | Q83: 28409 | R83: 0
A84: 1305 | C84: Высшее образование | D84: 1893893 | E84: =E85+E86+E87 -> 1017241 | F84: 684808 | G84: 191701 | H84: 143 | I84: -255039 | J84: -172811 | K84: -52478 | L84: -29739 | M84: -11 | N84: 1638854 | O84: 844430 | P84: 632330 | Q84: 161962 | R84: 132
B85: 113 | C85: Высшие колледжи системы здравоохранения | D85: 325985 | E85: 213913 | F85: 97039 | G85: 15033 | I85: -33717 | J85: -24816 | K85: -5774 | L85: -3127 | N85: 292268 | O85: 189097 | P85: 91265 | Q85: 11906 | R85: 0
B86: 136 | C86: Университет | D86: 1567908 | E86: 803328 | F86: 587769 | G86: 176668 | H86: 143 | I86: -200224 | J86: -132585 | K86: -42468 | L86: -25160 | M86: -11 | N86: 1367684 | O86: 670743 | P86: 545301 | Q86: 151508 | R86: 132
B87: 142 | C87: Высшие колледжи ГС К и ИН | D87: 0 | I87: -21098 | J87: -15410 | K87: -4236 | L87: -1452 | N87: -21098 | O87: -15410 | P87: -4236 | Q87: -1452 | R87: 0
A88: 1307 | C88: Курсы и учреждения по повышению квалификации | D88: 67334 | E88: =E89 -> 41691 | F88: 21578 | G88: 4065 | H88: 0 | I88: -6927 | J88: -5126 | K88: -1319 | L88: -482 | M88: 0 | N88: 60407 | O88: 36565 | P88: 20259 | Q88: 3583 | R88: 0
B89: 114 | C89: ГИПК (курсы и учреждения по повышению квалификации) | D89: 67334 | E89: 41691 | F89: 21578 | G89: 4065 | I89: -6927 | J89: -5126 | K89: -1319 | L89: -482 | N89: 60407 | O89: 36565 | P89: 20259 | Q89: 3583 | R89: 0
A90: 1308 | C90: Детские дома, детские дома семейного типа | D90: 100850 | E90: =E91 -> 42170 | F90: 52751 | G90: 5929 | H90: 0 | I90: -16192 | J90: -6144 | K90: -5673 | L90: -4375 | M90: 0 | N90: 84658 | O90: 36026 | P90: 47078 | Q90: 1554 | R90: 0
B91: 110 | C91: Детский дом | D91: 100850 | E91: 42170 | F91: 52751 | G91: 5929 | I91: -16192 | J91: -6144 | K91: -5673 | L91: -4375 | N91: 84658 | O91: 36026 | P91: 47078 | Q91: 1554 | R91: 0
A92: 1400 | C92: КУЛЬТУРА, ИСКУССТВО, КИНЕМАТОГРАФИЯ | D92: 527461 | E92: =E93+E96 -> 279814 | F92: 212380 | G92: 28307 | H92: 6960 | I92: -62245 | J92: -39642 | K92: -19805 | L92: -2265 | M92: -533 | N92: 465216 | O92: 240172 | P92: 192575 | Q92: 26042 | R92: 6427
A93: 1402 | C93: Деятельность в области культуры и искусства | D93: 336703 | E93: =E94+E95 -> 174611 | F93: 131456 | G93: 23676 | H93: 6960 | I93: -37503 | J93: -23547 | K93: -12051 | L93: -1372 | M93: -533 | N93: 299200 | O93: 151064 | P93: 119405 | Q93: 22304 | R93: 6427
B94: 142 | C94: Музеи и выставки ГСКиИН | D94: 24559 | F94: 15617 | G94: 1982 | H94: 6960 | I94: -3484 | K94: -2711 | L94: -240 | M94: -533 | N94: 21075 | O94: 0 | P94: 12906 | Q94: 1742 | R94: 6427
B95: 142 | C95: Дворцы и дома культуры, клубы и др.учр-я ГСКиИН | D95: 312144 | E95: 174611 | F95: 115839 | G95: 21694 | I95: -34019 | J95: -23547 | K95: -9340 | L95: -1132 | N95: 278125 | O95: 151064 | P95: 106499 | Q95: 20562 | R95: 0
A96: 1404 | C96: Учр. и меропр. в обл. культ.,искус.,спорта, не отн.к др.гр. | D96: 190758 | E96: =E97+E98 -> 105203 | F96: 80924 | G96: 4631 | H96: 0 | I96: -24742 | J96: -16095 | K96: -7754 | L96: -893 | M96: 0 | N96: 166016 | O96: 89108 | P96: 73170 | Q96: 3738 | R96: 0
B97: 110 | C97: Респ.спорт.-реаб.центр инвалидов | D97: 80715 | E97: 51214 | F97: 27472 | G97: 2029 | I97: -12214 | J97: -7867 | K97: -3788 | L97: -559 | N97: 68501 | O97: 43347 | P97: 23684 | Q97: 1470 | R97: 0
B98: 140 | C98: СДЮШОР | D98: 110043 | E98: 53989 | F98: 53452 | G98: 2602 | I98: -12528 | J98: -8228 | K98: -3966 | L98: -334 | N98: 97515 | O98: 45761 | P98: 49486 | Q98: 2268 | R98: 0
A99: 1500 | C99: СРЕДСТВА МАССОВОЙ ИНФОРМАЦИИ | D99: 151338 | E99: =E100+E102 -> 1423 | F99: 149751 | G99: 164 | H99: 0 | I99: -10996 | J99: -232 | K99: -10741 | L99: -23 | M99: 0 | N99: 140342 | O99: 1191 | P99: 139010 | Q99: 141 | R99: 0
A100: 1501 | C100: Телевидение и радиовещание | D100: 147930 | E100: =E101 -> 0 | F100: 147930 | G100: 0 | H100: 0 | I100: -10540 | J100: 0 | K100: -10540 | L100: 0 | M100: 0 | N100: 137390 | O100: 0 | P100: 137390 | Q100: 0 | R100: 0
B101: 157 | C101: Министерство цифрового развития, связи и массовых коммуникаций (ПГТРК) | D101: 147930 | F101: 147930 | I101: -10540 | K101: -10540 | N101: 137390 | O101: 0 | P101: 137390 | Q101: 0 | R101: 0
A102: 1503 | C102: Прочие средства массовой информации | D102: 3408 | E102: =E103 -> 1423 | F102: 1821 | G102: 164 | H102: 0 | I102: -456 | J102: -232 | K102: -201 | L102: -23 | M102: 0 | N102: 2952 | O102: 1191 | P102: 1620 | Q102: 141 | R102: 0
B103: 115 | C103: Минюст, ГУ "Юр.литер-ра" | D103: 3408 | E103: 1423 | F103: 1821 | G103: 164 | I103: -456 | J103: -232 | K103: -201 | L103: -23 | N103: 2952 | O103: 1191 | P103: 1620 | Q103: 141 | R103: 0
A104: 1600 | C104: ЗДРАВООХРАНЕНИЕ | D104: 16788532 | E104: =E105+E107+E110 -> 6476588 | F104: 7146859 | G104: 3039889 | H104: 125196 | I104: -1994492 | J104: -897299 | K104: -674377 | L104: -402638 | M104: -20178 | N104: 14794040 | O104: 5579289 | P104: 6472482 | Q104: 2637251 | R104: 105018
A105: 1601 | C105: Больницы | D105: 15276948 | E105: =E106 -> 5757749 | F105: 6500453 | G105: 2932930 | H105: 85816 | I105: -1785712 | J105: -799113 | K105: -599848 | L105: -372971 | M105: -13780 | N105: 13491236 | O105: 4958636 | P105: 5900605 | Q105: 2559959 | R105: 72036
B106: 113 | C106: Больницы | D106: 15276948 | E106: 5757749 | F106: 6500453 | G106: 2932930 | H106: 85816 | I106: -1785712 | J106: -799113 | K106: -599848 | L106: -372971 | M106: -13780 | N106: 13491236 | O106: 4958636 | P106: 5900605 | Q106: 2559959 | R106: 72036
A107: 1602 | C107: Поликлиники, амбулатории и фельдшерско-акушерские пункты | D107: 1298825 | E107: =E108+E109 -> 612926 | F107: 582735 | G107: 103164 | H107: 0 | I107: -145255 | J107: -70718 | K107: -51414 | L107: -20840 | M107: -2283 | N107: 1153570 | O107: 542208 | P107: 531321 | Q107: 82324 | R107: -2283
B108: 113 | C108: Поликлиники и амбулатории | D108: 1137354 | E108: 554156 | F108: 503673 | G108: 79525 | I108: -117850 | J108: -59206 | K108: -39307 | L108: -17054 | M108: -2283 | N108: 1019504 | O108: 494950 | P108: 464366 | Q108: 62471 | R108: -2283
B109: 113 | C109: Станции скорой медицинской помощи | D109: 161471 | E109: 58770 | F109: 79062 | G109: 23639 | I109: -27405 | J109: -11512 | K109: -12107 | L109: -3786 | N109: 134066 | O109: 47258 | P109: 66955 | Q109: 19853 | R109: 0
A110: 1603 | C110: Санитарно-эпидемиологические профилактич. службы и учрежд. | D110: 212759 | E110: =E111+E112 -> 105913 | F110: 63671 | G110: 3795 | H110: 39380 | I110: -63525 | J110: -27468 | K110: -23115 | L110: -8827 | M110: -4115 | N110: 149234 | O110: 78445 | P110: 40556 | Q110: -5032 | R110: 35265
B111: 110 | C111: Дом ребенка | D111: 79651 | F111: 36540 | G111: 3795 | H111: 39316 | I111: -19906 | K111: -10354 | L111: -5437 | M111: -4115 | N111: 59745 | O111: 0 | P111: 26186 | Q111: -1642 | R111: 35201
B112: 113 | C112: Мероприятия по борьбе с эпидемиями | D112: 133108 | E112: 105913 | F112: 27131 | H112: 64 | I112: -43619 | J112: -27468 | K112: -12761 | L112: -3390 | N112: 89489 | O112: 78445 | P112: 14370 | Q112: -3390 | R112: 64
A113: 1700 | C113: СОЦИАЛЬНАЯ ПОЛИТИКА | D113: 1296794 | E113: =E114 -> 489474 | F113: 536340 | G113: 233526 | H113: 37454 | I113: -202393 | J113: -64854 | K113: -54631 | L113: -79350 | M113: -3558 | N113: 1094401 | O113: 424620 | P113: 481709 | Q113: 154176 | R113: 33896
A114: 1703 | C114: Учреждения социального обеспечения | D114: 1296794 | E114: =E115+E116+E117 -> 489474 | F114: 536340 | G114: 233526 | H114: 37454 | I114: -202393 | J114: -64854 | K114: -54631 | L114: -79350 | M114: -3558 | N114: 1094401 | O114: 424620 | P114: 481709 | Q114: 154176 | R114: 33896
B115: 110 | C115: Дома-интернаты для малолетних инвалидов | D115: 112772 | E115: 18160 | F115: 66805 | G115: 16628 | H115: 11179 | I115: -14050 | J115: -1297 | K115: -6518 | L115: -4637 | M115: -1598 | N115: 98722 | O115: 16863 | P115: 60287 | Q115: 11991 | R115: 9581
B116: 110 | C116: Дома-интернаты для престарелых и инвалидов | D116: 1179993 | E116: 469818 | F116: 467287 | G116: 216613 | H116: 26275 | I116: -187918 | J116: -63349 | K116: -47933 | L116: -74676 | M116: -1960 | N116: 992075 | O116: 406469 | P116: 419354 | Q116: 141937 | R116: 24315
B117: 110 | C117: Республиканский центр по протезированию и ортопедии | D117: 4029 | E117: 1496 | F117: 2248 | G117: 285 | I117: -425 | J117: -208 | K117: -180 | L117: -37 | N117: 3604 | O117: 1288 | P117: 2068 | Q117: 248 | R117: 0
A118: 3000 | C118: ПРОЧИЕ РАСХОДЫ | D118: =D119 -> 31092 | E118: =E119 -> 13066 | F118: 17044 | G118: 982 | H118: 0 | I118: -3902 | J118: -2354 | K118: -1400 | L118: -148 | M118: 0 | N118: 27190 | O118: 10712 | P118: 15644 | Q118: 834 | R118: 0
A119: 3005 | C119: Проведение выборов и референдумов | D119: 31092 | E119: =E120 -> 13066 | F119: 17044 | G119: 982 | H119: 0 | I119: -3902 | J119: -2354 | K119: -1400 | L119: -148 | M119: 0 | N119: 27190 | O119: 10712 | P119: 15644 | Q119: 834 | R119: 0
B120: 112 | C120: Центральная избирательная комиссия ПМР | D120: 31092 | E120: 13066 | F120: 17044 | G120: 982 | I120: -3902 | J120: -2354 | K120: -1400 | L120: -148 | N120: 27190 | O120: 10712 | P120: 15644 | Q120: 834 | R120: 0
C121: ИТОГО | D121: =D118+D113+D104+D99+D92+D76+D73+D69+D51+D48+D39+D9 -> 47759768 | E121: =E118+E113+E104+E99+E92+E76+E73+E69+E51+E48+E39+E9 -> 15241911 | F121: 24948348 | G121: 6148057 | H121: 1421452 | I121: -6115124 | J121: -2277821 | K121: -2582603 | L121: -1091889 | M121: -162811 | N121: 41644644 | O121: 12964090 | P121: 22365745 | Q121: 5056168 | R121: 1258641
